bitfinex-derivatives/quotes_ETHF0:USTF0_20250726
["timestamp","ask_amount","ask_price","bid_price","bid_amount"]
[1753497562104,3.7429,3736.8,3736.7,0.9088]
[1753497562303,1.33736,3737.8,3736.7,0.9088]
[1753497562304,1.4075,3737.1,3736.8,2.7428]
[1753497562501,3.2078,3737.2,3736.8,2.7428]
[1753497562704,3.2078,3737.2,3736.8,1.64048737]
[1753497562904,6.61283,3737.2,3737.1,0.9088]
[1753497563099,0.5351,3736.7,3736.6,2.3294]
[1753497563306,3.4051,3736.7,3736.6,15.5254]
[1753497563506,6.6129,3736.7,3736.6,0.9088]
[1753497563707,6.6129,3736.7,3736.6,14.1048]
[1753497564109,4.01425,3735.8,3733.8,0.19818686]
[1753497564303,5.66349,3734.0,3733.9,0.90880632]
[1753497564501,3.74329,3734.0,3733.9,2.54929369]
[1753497564706,3.74329,3734.0,3733.9,5.29209369]
[1753497564908,3.74329,3734.0,3733.9,18.66509369]
[1753497565106,3.74329,3734.0,3733.9,3.65160632]
[1753497565414,5.08359,3734.0,3733.9,15.70540632]
[1753497565716,3.74329,3734.0,3733.9,17.02760632]
[1753497566212,3.74329,3734.0,3733.9,0.90880632]
[1753497566213,5.66349,3734.0,3733.9,0.90880632]
[1753497566413,2.4557,3733.9,3733.8,0.19818686]
[1753497567013,0.53563,3733.0,3732.9,16.0908]
[1753497567208,3.74343,3733.0,3732.9,16.40908737]
[1753497567408,3.74343,3733.0,3732.9,17.73128737]
[1753497568312,3.74343,3733.0,3732.9,18.64508737]
[1753497569015,3.74343,3733.0,3732.9,5.29208737]
[1753497569213,3.74343,3733.0,3732.9,18.62708737]
[1753497569414,3.2078,3733.0,3732.9,18.62708737]
[1753497569814,3.74343,3733.0,3732.9,18.62708737]
[1753497570017,3.2078,3733.0,3732.9,18.62708737]
[1753497570518,3.74343,3733.0,3732.9,18.60808737]
[1753497570818,3.2078,3733.0,3732.9,18.60808737]
[1753497571011,3.74343,3733.0,3732.9,18.60808737]
[1753497571206,1.33883,3733.7,3732.9,18.60808737]
[1753497571207,3.2078,3733.9,3733.0,1.3222]
[1753497571411,3.2078,3734.4,3733.5,3.2078]
[1753497571614,0.53547,3734.2,3733.6,13.306]
[1753497571812,3.8096,3734.3,3733.6,13.306]
[1753497572010,3.2078,3734.4,3733.9,0.9088]
[1753497572313,3.2078,3734.4,3733.7,23.134]
[1753497572616,3.2078,3735.3,3734.6,2.231]
[1753497572815,0.53532,3735.2,3734.8,3.6516]
[1753497573022,6.0778,3735.4,3734.8,3.6516]
[1753497573317,3.4078,3735.9,3735.3,0.9088]
[1753497573512,3.4078,3735.9,3735.5,0.53526]
[1753497573707,0.2,3735.9,3735.7,3.6516]
[1753497573907,0.2,3735.9,3735.8,3.6516]
[1753497574113,0.2,3735.9,3735.8,4.18683]
[1753497574509,1.4075,3737.0,3736.5,0.53512]
[1753497574714,2.16012391,3736.9,3736.7,3.6516]
[1753497574921,0.73673142,3736.8,3736.6,13.274]
[1753497575111,0.73673142,3736.7,3736.6,13.274]
[1753497575516,0.73673142,3736.7,3736.6,16.9463]
[1753497575724,0.73673142,3736.7,3736.6,17.48141]
[1753497575915,0.73673142,3736.7,3736.6,40.61641]
[1753497576116,3.2078,3737.2,3736.7,0.868]
[1753497576422,0.73643415,3737.1,3737.0,4.20736]
[1753497576920,5.5838,3737.6,3737.1,0.53503]
[1753497577116,0.73638375,3737.5,3737.2,3.6723]
[1753497577415,0.73638375,3737.4,3737.3,13.77601]
[1753497577620,0.73638375,3737.5,3737.3,13.77601]
[1753497577820,0.73638375,3737.5,3737.4,3.6723]
[1753497578214,3.2078,3737.6,3737.4,3.6723]
[1753497578422,3.2078,3737.6,3737.5,2.3502]
[1753497578715,3.2078,3737.6,3737.0,0.53505]
[1753497578918,0.8815,3735.7,3735.0,1.4822]
[1753497579126,3.2078,3735.1,3735.0,3.6723]
[1753497579416,0.5387,3736.2,3735.1,3.6723]
[1753497579417,3.2078,3735.8,3735.1,3.6723]
[1753497579609,0.5353,3735.3,3735.2,16.9763]
[1753497580016,0.5353,3735.3,3735.2,3.6723]
[1753497580218,0.5353,3735.3,3735.2,16.9733]
[1753497580414,0.5353,3735.3,3735.2,16.9673]
[1753497580618,0.53527,3735.5,3735.3,3.6723]
[1753497580817,3.8049,3733.9,3733.8,0.19818686]
[1753497581021,5.9385,3733.9,3733.0,0.868]
[1753497581315,3.2078,3734.1,3733.2,0.868]
[1753497581622,0.53551,3733.9,3733.4,0.868]
[1753497581822,0.53553,3733.7,3733.4,0.868]
[1753497582023,0.53553,3733.7,3733.3,23.132]
[1753497582024,0.53553,3733.7,3733.6,0.868]
[1753497582211,3.2078,3734.1,3733.3,23.132]
[1753497582415,3.2078,3734.1,3145.2,0.37859836]
[1753497582416,2.7307,3733.5,3732.3,24.001]
[1753497582611,3.2078,3733.0,3732.4,13.696]
[1753497582819,0.53565,3732.9,3732.6,2.8043]
[1753497583022,0.53565,3732.9,3732.8,0.868]
[1753497583227,3.2078,3733.0,3732.8,0.868]
[1753497583421,3.2078,3733.0,3732.5,14.23469]
[1753497583722,3.2078,3733.0,3732.9,0.868]
[1753497583912,3.2078,3733.0,3732.9,2.3502]
[1753497584114,3.2078,3733.0,3732.9,16.0312]
[1753497585221,3.2078,3733.0,3732.9,17.3533]
[1753497585619,3.2078,3733.4,3732.9,15.0031]
[1753497585820,5.9385,3733.4,3733.0,2.3502]
[1753497586019,5.17609,3733.4,3733.1,0.868]
[1753497586215,1.298,3733.3,3733.1,0.868]
[1753497586411,2.7307,3733.2,3733.1,0.868]
[1753497586616,1.298,3733.2,3733.1,14.514]
[1753497586926,1.298,3733.2,3733.1,14.494]
[1753497587524,3.2078,3733.4,3733.1,3.6723]
[1753497587821,2.7307,3733.7,3733.3,2.3502]
[1753497588125,1.298,3733.6,3733.5,0.868]
[1753497588626,2.7307,3733.6,3733.5,0.868]
[1753497588920,1.4327,3734.1,3733.6,3.6723]
[1753497589221,3.2078,3734.2,3733.7,23.67652]
[1753497589428,0.74954287,3734.1,3734.0,3.6723]
[1753497589726,3.2078,3734.2,3733.8,3.6723]
[1753497589926,3.2078,3734.2,3734.1,4.20777]
[1753497590126,3.95732157,3734.2,3734.1,3.6723]
[1753497590522,6.68802157,3734.2,3734.1,14.433]
[1753497590924,6.68802157,3734.2,3734.1,13.565]
[1753497591127,7.22348157,3734.2,3734.1,14.433]
[1753497591624,6.68802157,3734.2,3734.1,14.433]
[1753497591815,7.22348157,3734.2,3734.1,14.433]
[1753497592020,3.26617,3734.1,3733.8,2.8043]
[1753497592224,1.298,3734.1,3734.0,0.868]
[1753497592424,2.04831029,3734.1,3734.0,2.3502]
[1753497593630,0.75031029,3734.1,3734.0,2.3502]
[1753497593924,0.75031029,3734.1,3734.0,4.20779]
[1753497594128,3.2078,3734.2,3734.1,0.53547]
[1753497594324,3.74319,3734.7,3734.2,0.53545]
[1753497594530,0.75100305,3734.6,3734.3,0.53544]
[1753497594730,0.75100305,3734.5,3734.4,3.6723]
[1753497594931,0.75100305,3734.5,3734.4,4.20773]
[1753497595929,3.2078,3734.7,3734.6,4.2077]
[1753497596233,3.2078,3734.7,3734.6,17.6607]
[1753497597336,3.2078,3734.7,3734.6,17.6357]
[1753497597930,2.7307,3735.7,3735.0,4.20764]
[1753497597931,3.2078,3735.1,3735.0,4.20764]
[1753497598134,3.2078,3735.1,3735.0,27.34964]
[1753497598639,3.2078,3735.1,3735.0,32.34964]
[1753497599339,0.2,3735.9,3735.8,1.40323]
[1753497599637,4.15301941,3735.9,3735.8,17.59953]
[1753497600033,4.15301941,3735.9,3735.8,17.58853]
[1753497601040,4.15301941,3735.9,3735.8,17.0533]
[1753497601740,1.4327,3735.7,3735.3,13.373]
[1753497602038,3.26599,3735.4,3735.3,14.241]
[1753497602239,4.01120941,3735.4,3735.3,13.373]
[1753497602440,4.55000941,3735.4,3735.3,13.373]
[1753497602936,0.74521941,3735.4,3735.0,23.142]
[1753497603239,2.7307,3735.2,3735.1,14.21]
[1753497603439,3.47591941,3735.2,3735.1,14.21]
[1753497604239,4.01122941,3735.2,3735.1,14.21]
[1753497604442,3.47591941,3735.2,3735.1,14.21]
[1753497604838,4.01122941,3735.2,3735.1,14.21]
[1753497605039,3.47591941,3735.2,3735.1,14.21]
[1753497605537,2.04321941,3735.2,3735.1,17.0557]
[1753497605937,2.57852941,3735.2,3735.1,17.0557]
[1753497606132,0.74521941,3735.2,3735.1,17.0657]
[1753497606337,0.53529,3735.4,3735.1,17.0657]
[1753497606533,0.73903601,3735.3,3735.2,2.394]
[1753497606736,3.36503,3735.1,3735.0,23.142]
[1753497607040,0.53536,3734.9,3734.6,24.4677]
[1753497607241,1.3452,3734.8,3734.7,14.149]
[1753497607437,2.08487967,3734.8,3734.7,15.665]
[1753497607640,0.73967967,3734.8,3734.7,16.9947]
[1753497608340,0.73967967,3734.8,3734.7,17.53009]
[1753497608541,3.2078,3735.5,3734.9,0.53535]
[1753497608741,0.5353,3735.3,3734.9,0.878]
[1753497609040,0.74038002,3735.2,3735.1,3.7237]
[1753497609241,0.74038002,3735.2,3735.1,16.9657]
[1753497609546,1.27569002,3735.2,3735.1,16.9657]
[1753497610041,2.62089002,3735.2,3735.1,2.394]
[1753497610247,4.10539002,3735.2,3735.1,15.633]
[1753497610552,4.10539002,3735.2,3735.1,14.117]
[1753497611641,3.36506,3734.9,3734.8,0.878]
[1753497611838,3.36506,3734.9,3734.8,14.114]
[1753497611839,4.10544002,3734.9,3734.8,14.114]
[1753497612043,4.1053534,3734.9,3734.8,14.114]
[1753497613251,4.1053534,3734.9,3734.8,14.113]
[1753497613843,4.1053534,3734.9,3734.8,0.878]
[1753497614037,3.36508,3734.7,3734.6,24.016]
[1753497614239,4.1053734,3734.7,3734.6,37.251]
[1753497614844,4.1053734,3734.7,3734.6,24.016]
[1753497615143,4.1053734,3734.7,3734.6,37.251]
[1753497615350,4.0982086,3734.7,3734.6,0.878]
[1753497615646,4.0982086,3734.7,3734.6,14.113]
[1753497616149,4.0982086,3734.7,3734.6,0.878]
[1753497616352,4.0982086,3734.7,3734.6,14.112]
[1753497616751,0.53541,3734.6,3734.3,25.9837]
[1753497616946,0.7402934,3734.5,3734.4,16.9577]
[1753497617149,0.7402934,3734.5,3734.4,16.0797]
[1753497617445,1.3452,3734.5,3734.4,16.0797]
[1753497617747,1.3452,3734.5,3734.4,16.9577]
[1753497617949,3.36511,3734.5,3734.4,14.112]
[1753497618151,2.8297,3734.5,3734.4,16.9577]
[1753497618547,3.36511,3734.5,3734.4,16.9577]
[1753497618954,3.36511,3734.5,3734.4,3.7237]
[1753497619248,3.36511,3734.5,3734.4,14.111]
[1753497619851,4.10815183,3734.5,3734.4,14.111]
[1753497620252,3.36511,3734.5,3734.4,14.111]
[1753497620841,3.36511,3734.5,3734.4,0.878]
[1753497620842,4.10828588,3734.5,3734.4,0.878]
[1753497621047,0.53543,3734.4,3734.3,23.138]
[1753497621251,4.10830588,3734.4,3734.3,36.37]
[1753497621448,0.74317588,3734.4,3734.3,40.0937]
[1753497621650,3.2078,3734.7,3734.4,0.53542]
[1753497621853,0.74327877,3734.6,3734.5,1.41341]
[1753497622053,0.74327877,3734.6,3734.5,3.7237]
[1753497623145,3.74318,3734.7,3734.5,3.7237]
[1753497623146,3.2078,3734.7,3734.5,3.7237]
[1753497623453,3.74319,3734.7,3734.6,16.9547]
[1753497623646,4.48681997,3734.7,3734.6,16.9547]
[1753497623849,3.95142997,3734.7,3734.6,16.9547]
[1753497624049,2.8297,3735.2,3734.7,0.53538]
[1753497624251,0.74358454,3735.1,3734.7,3.7237]
[1753497624453,3.2078,3735.4,3734.8,3.7237]
[1753497624755,3.2078,3735.4,3735.3,0.5353]
[1753497624948,3.2078,3735.4,3735.3,17.488]
[1753497625749,2.01977,3735.5,3735.4,3.7237]
[1753497625956,2.763502,3735.5,3735.4,15.622]
[1753497626257,2.228232,3735.5,3735.4,15.622]
[1753497626455,7.316502,3735.5,3735.4,15.622]
[1753497626750,7.319732,3735.5,3734.8,0.878]
[1753497626953,7.319732,3735.5,3734.5,3.2078]
[1753497626954,6.781232,3735.4,3734.9,13.227]
[1753497627155,3.365,3735.3,3735.0,2.394]
[1753497627350,2.8297,3735.2,3735.1,2.394]
[1753497627558,3.36501,3735.2,3735.1,2.394]
[1753497627748,4.10866612,3735.2,3735.1,2.394]
[1753497627954,4.10866612,3735.2,3735.1,0.878]
[1753497633062,4.10866612,3735.2,3735.1,2.394]
[1753497634657,3.36504,3735.0,3734.9,16.9507]
[1753497634858,7.31649612,3735.0,3734.9,16.9507]
[1753497636657,3.95145612,3735.0,3734.9,16.9507]
[1753497637358,4.48679612,3735.0,3734.9,16.9507]
[1753497638458,1.378,3734.9,3734.4,3.6873]
[1753497638659,3.42268,3734.7,3734.6,0.9216]
[1753497638859,0.53538,3734.7,3734.6,0.9216]
[1753497639070,0.53538,3734.7,3734.6,2.3923]
[1753497639366,3.42268,3734.7,3734.6,3.6873]
[1753497641465,4.16685695,3734.7,3734.6,3.6873]
[1753497641861,3.42268,3734.7,3734.6,3.6873]
[1753497642066,4.16685682,3734.7,3734.6,3.6873]
[1753497642565,6.70215682,3734.7,3734.6,6.1552]
[1753497645867,6.70215682,3734.7,3734.6,4.2783]
[1753497646056,6.70215682,3734.7,3734.6,2.9833]
[1753497646261,6.70215682,3734.7,3734.6,6.1552]
[1753497646768,6.70215682,3734.7,3734.6,5.2336]
[1753497647065,5.95798,3734.7,3734.6,6.1552]
[1753497647367,6.70217381,3734.7,3734.6,6.1552]
[1753497647966,5.19287381,3734.7,3734.6,6.1552]
[1753497648864,6.70217381,3734.7,3734.6,6.1552]
[1753497651858,5.19287381,3734.7,3734.6,6.1552]
[1753497653368,6.70217381,3734.7,3734.6,6.1552]
[1753497653670,6.70235513,3734.7,3734.6,6.1552]
[1753497655567,3.81505513,3734.7,3734.6,6.1552]
[1753497655767,3.22665513,3734.7,3734.6,6.1552]
[1753497656271,4.60465513,3734.7,3734.6,6.1552]
[1753497656474,5.19305513,3734.7,3734.6,6.1552]
[1753497656673,6.70235513,3734.7,3734.6,6.1552]
[1753497657471,6.70235513,3734.7,3734.3,23.138]
[1753497657472,6.49693,3734.4,3734.3,19.28267423]
[1753497657669,7.24130513,3734.4,3734.3,32.46167423]
[1753497658470,7.24130513,3734.4,3734.3,32.45967423]
[1753497659172,7.24130513,3734.4,3734.3,31.53807423]
[1753497659368,7.24130513,3734.4,3734.3,18.36107423]
[1753497659571,7.24130513,3734.4,3734.3,31.53507423]
[1753497660074,7.24130513,3734.4,3734.3,13.174]
[1753497660668,0.74437513,3734.4,3734.3,19.3292]
[1753497660865,3.2078,3734.9,3734.4,0.9216]
[1753497661069,3.2078,3734.9,3734.8,6.1552]
[1753497661264,3.2078,3734.9,3734.8,19.3262]
[1753497662676,7.1211,3734.9,3734.8,19.3262]
[1753497662877,8.6304,3734.9,3734.8,19.3262]
[1753497663379,7.1211,3734.9,3734.8,19.3262]
[1753497663769,7.65645,3734.9,3734.8,19.3262]
[1753497663969,9.16575,3734.9,3734.8,19.3262]
[1753497664176,10.07415,3734.9,3734.8,19.3262]
[1753497664572,3.2078,3734.9,3734.8,19.3262]
[1753497664771,6.0882,3734.9,3734.8,19.3262]
[1753497665474,4.7102,3734.9,3734.8,19.3262]
[1753497665670,4.7102,3734.9,3734.8,6.1552]
[1753497665884,4.7102,3734.9,3734.8,19.3132]
[1753497666085,3.2078,3734.9,3734.8,19.3132]
[1753497667586,3.2078,3734.9,3734.8,19.84857]
[1753497667789,3.2078,3735.3,3735.2,6.3418]
[1753497667986,3.2078,3735.3,3735.2,19.4948]
[1753497668488,2.8094,3735.7,3735.6,6.3418]
[1753497668689,3.2078,3735.7,3735.6,19.4938]
[1753497669584,3.2078,3735.7,3735.6,20.02906]
[1753497669790,3.2078,3735.7,3735.6,19.4938]
[1753497669992,3.2078,3735.7,3735.6,20.02906]
[1753497671594,0.2,3735.9,3735.8,2.5626]
[1753497671793,0.2,3735.9,3735.8,6.3418]
[1753497672391,0.2,3735.9,3735.8,6.87703]
[1753497672995,0.93787795,3735.9,3735.8,6.87703]
[1753497673199,0.2,3735.9,3735.8,6.87703]
[1753497676094,5.5532,3735.9,3735.8,6.3418]
[1753497676292,9.6761,3735.9,3735.8,0.6013]
[1753497676492,6.4683,3735.9,3735.8,0.6013]
[1753497676893,6.4683,3735.9,3735.8,3.4212]
[1753497677193,0.2,3735.9,3735.8,6.87703]
[1753497678288,0.2,3735.9,3735.8,10.08483]
[1753497679392,0.2,3735.9,3735.8,15.08483]
[1753497680497,3.8391,3736.7,3736.6,6.3418]
[1753497680693,5.3532,3736.7,3736.6,19.4588]
[1753497681000,5.3532,3736.7,3736.6,19.99391]
[1753497681586,5.3532,3736.7,3736.6,19.4588]
[1753497681796,6.2683,3736.7,3736.6,16.5382]
[1753497682398,6.2683,3736.7,3736.6,13.117]
[1753497685694,9.4761,3736.7,3736.6,15.7344]
[1753497686600,9.4761,3736.7,3736.6,16.3357]
[1753497686804,9.4761,3736.7,3736.6,19.4588]
[1753497687102,9.4761,3736.7,3736.6,19.99391]
[1753497687495,8.561,3736.7,3736.6,19.99391]
[1753497687798,2.8094,3737.0,3736.9,4.7696]
[1753497687996,3.8391,3737.0,3736.9,6.3418]
[1753497688296,2.5574,3736.8,3736.7,2.4308]
[1753497688497,6.2683,3736.8,3736.7,3.0321]
[1753497688695,2.5574,3736.8,3736.6,13.117]
[1753497688894,6.2683,3736.7,3736.6,13.117]
[1753497689497,6.2683,3736.7,3736.6,14.5769]
[1753497689695,6.2683,3736.7,3736.6,16.5382]
[1753497689901,6.2683,3736.7,3736.6,19.99391]
[1753497690101,6.2683,3736.7,3736.6,19.4588]
[1753497691102,6.2683,3736.7,3736.6,19.99391]
[1753497691401,10.01115,3737.1,3736.7,3.7792]
[1753497691601,5.3532,3736.8,3736.7,6.3418]
[1753497691803,6.2683,3736.8,3736.7,6.3418]
[1753497691996,6.2683,3736.8,3736.7,4.9934]
[1753497692200,6.2683,3736.8,3736.7,3.4212]
[1753497692804,6.2683,3736.8,3736.7,4.9934]
[1753497694102,7.0044277,3736.8,3736.7,4.9934]
[1753497696004,7.0044277,3736.8,3736.6,13.117]
[1753497696207,10.2408426,3736.7,3736.6,13.117]
[1753497696604,10.7759426,3736.7,3736.6,13.117]
[1753497696910,10.2408426,3736.7,3736.6,14.0411]
[1753497697105,10.7759426,3736.7,3736.6,14.0411]
[1753497697407,10.2408426,3736.7,3736.6,13.117]
[1753497697595,10.2408426,3736.7,3736.6,14.0411]
[1753497697801,10.2408426,3736.7,3736.6,17.9658]
[1753497699411,10.2408426,3736.7,3736.6,19.2547]
[1753497700006,10.7759426,3736.7,3736.6,19.2547]
[1753497700206,10.2408426,3736.7,3736.6,19.2547]
[1753497700408,10.7759426,3736.7,3736.6,17.9658]
[1753497700598,6.8628426,3736.7,3736.6,19.2547]
[1753497700908,3.2078,3736.7,3736.6,19.78981]
[1753497701301,3.94572183,3736.7,3736.6,19.78981]
[1753497702302,3.94572183,3736.7,3736.6,19.2547]
[1753497702498,5.45592183,3736.7,3736.6,19.2547]
[1753497702703,4.60582183,3736.7,3736.6,19.2547]
[1753497703409,4.60582183,3736.7,3736.6,19.78981]
[1753497704711,7.03432183,3736.7,3736.6,6.1377]
[1753497705007,0.73792183,3736.7,3736.6,19.71381]
[1753497706608,3.8679,3737.5,3737.4,6.1377]
[1753497706808,3.8679,3737.5,3737.4,19.1697]
[1753497707111,5.4189,3737.5,3737.4,19.7047]
[1753497710507,3.8679,3737.5,3737.4,19.7047]
[1753497710915,3.2078,3737.6,3737.5,6.67269]
[1753497712920,9.5042,3737.6,3737.5,6.67269]
[1753497713519,8.6267,3737.6,3737.5,6.67269]
[1753497713721,5.6675,3737.6,3737.5,6.67269]
[1753497713921,4.718,3737.6,3737.5,6.67269]
[1753497714217,4.6694,3737.9,3737.8,6.67264]
[1753497714721,5.6189,3737.9,3737.8,6.67264]
[1753497715822,6.4964,3737.9,3737.8,6.67264]
[1753497718217,5.6189,3737.9,3737.8,6.67264]
[1753497718524,6.34990807,3737.9,3737.8,6.67264]
[1753497719321,7.22740807,3737.9,3737.8,6.67264]
[1753497719724,0.93100807,3737.9,3737.8,7.40630791]
[1753497720024,0.2,3737.9,3737.8,7.40630791]
[1753497720818,0.018,3738.3,3738.2,6.67259]
[1753497721014,0.018,3738.3,3738.2,19.65059]
[1753497721215,0.74887256,3738.3,3738.2,19.65059]
[1753497722213,0.018,3738.3,3738.2,19.65059]
[1753497722618,9.5222,3738.3,3738.2,4.8488]
[1753497722823,10.25270694,3738.3,3738.2,13.50889]
[1753497723019,0.018,3738.3,3738.2,20.38025791]
[1753497723425,0.018,3738.3,3738.2,23.58805791]
[1753497724724,1.601,3739.0,3738.9,0.53479]
[1753497724928,4.79072135,3739.0,3738.9,19.63749]
[1753497725228,1.5992,3739.0,3738.9,19.63749]
[1753497725521,2.3289282,3739.0,3738.9,19.63749]
[1753497725927,4.045,3739.0,3738.9,19.63749]
[1753497726228,1.5992,3739.0,3738.9,19.63749]
[1753497726431,0.6497,3739.0,3738.9,19.63749]
[1753497727622,5.4128,3739.0,3738.9,19.63749]
[1753497727821,7.01151099,3739.0,3738.9,19.63749]
[1753497728022,5.4128,3739.0,3738.9,19.63749]
[1753497728530,0.6497,3739.0,3738.9,20.37115791]
[1753497728730,0.05,3739.0,3738.9,20.37115791]
[1753497731929,1.9183,3739.7,3739.6,6.95538]
[1753497732227,2.64724282,3739.7,3739.6,19.88938]
[1753497732727,0.2,3739.9,3739.8,0.53466]
[1753497732922,0.92887354,3739.9,3739.8,6.95536]
[1753497733528,0.92876345,3739.9,3739.8,6.95536]
[1753497733729,0.92875693,3739.9,3739.8,6.95536]
[1753497733929,2.4751,3739.5,3739.4,6.95541]
[1753497734125,6.2272,3739.5,3739.4,19.88341]
[1753497735120,5.3579,3739.5,3739.4,19.88341]
[1753497737922,1.3761,3740.4,3740.3,0.53459]
[1753497738228,9.435,3740.4,3740.3,19.87129]
[1753497738622,8.5657,3740.4,3740.3,19.87129]
[1753497738929,5.3579,3740.4,3740.3,19.87129]
[1753497739230,3.8512,3740.4,3740.3,19.87129]
[1753497739524,6.2272,3740.7,3740.6,3.12094]
[1753497739727,6.95564036,3740.7,3740.6,19.85924]
[1753497740928,6.2272,3741.0,3740.9,0.5345]
[1753497741131,6.08617021,3741.0,3740.9,20.58586791]
[1753497741532,3.20337021,3741.0,3740.9,20.58586791]
[1753497742030,2.26427021,3741.0,3740.9,20.58586791]
[1753497742326,6.2452,3741.3,3741.2,1.15106]
[1753497742631,6.2452,3741.3,3741.2,6.95516]
[1753497742827,6.97298716,3741.3,3741.2,6.95516]
[1753497743031,1.31428716,3741.3,3741.2,6.95516]
[1753497743226,6.97298716,3741.3,3741.2,6.95516]
[1753497743431,6.2452,3741.3,3741.2,5.61546]
[1753497744132,6.2452,3741.3,3741.2,0.53446]
[1753497744329,6.2452,3741.3,3741.2,5.61546]
[1753497744933,6.2452,3741.3,3741.2,0.53446]
[1753497745434,6.2452,3741.3,3741.2,1.45976]
[1753497745633,6.2452,3741.3,3741.2,2.07636]
[1753497746929,6.2452,3741.3,3741.2,0.53446]
[1753497747137,6.2272,3740.8,3740.7,26.22993]
[1753497747334,6.2272,3740.8,3740.7,39.09993]
[1753497747536,6.95476194,3740.8,3740.7,41.59453]
[1753497748135,6.95476194,3740.8,3740.7,42.93423]
[1753497749539,6.95476194,3740.8,3740.7,41.59053]
[1753497749737,6.95476194,3740.8,3740.7,42.93023]
[1753497753335,6.95476194,3740.8,3740.7,42.91323]
[1753497754740,6.95476194,3740.8,3740.7,30.06423]
[1753497754941,6.95476194,3740.8,3740.7,41.56553]
[1753497755139,6.95476194,3740.8,3740.7,27.15523]
[1753497755440,6.95476194,3740.8,3740.7,36.48253]
[1753497755636,6.95476194,3740.8,3740.7,35.948]
[1753497756041,11.95476194,3740.8,3740.7,33.61437817]
[1753497756445,12.48928194,3740.8,3740.7,33.61437817]
[1753497756644,12.49107975,3740.8,3740.7,34.14390817]
[1753497756839,11.95655975,3740.8,3740.7,0.53453]
[1753497757043,12.49107975,3740.8,3740.7,12.833]
[1753497758043,11.95655975,3740.8,3740.7,0.53453]
[1753497758342,11.95655975,3740.8,3740.7,13.36653]
[1753497758544,6.95655975,3740.8,3740.7,18.27793]
[1753497758739,2.26535975,3740.8,3740.7,19.63733]
[1753497759045,0.72935975,3740.8,3740.7,19.63733]
[1753497760041,1.75605975,3740.8,3740.7,19.63733]
[1753497760348,4.75365975,3740.8,3740.7,19.63733]
[1753497760549,7.96145975,3740.8,3740.7,13.36353]
[1753497761040,7.96145975,3740.8,3740.7,13.35953]
[1753497761241,7.96145975,3740.8,3740.7,12.825]
[1753497762144,7.96145975,3740.8,3740.7,13.35953]
[1753497763442,4.52885975,3740.8,3740.7,19.63333]
[1753497763646,3.93715975,3740.8,3740.7,19.63333]
[1753497764044,0.72935975,3740.8,3740.7,19.63333]
[1753497764647,4.75365975,3740.8,3740.7,6.80833]
[1753497764844,7.96145975,3740.8,3740.7,4.9144]
[1753497765044,7.96145975,3740.8,3740.7,17.34763]
[1753497765251,7.96145975,3740.8,3740.7,19.61033]
[1753497765547,7.96145975,3740.8,3740.6,0.53454]
[1753497765853,7.96145975,3740.8,3740.3,6.80839]
[1753497765854,4.0243,3740.4,3740.3,6.80839]
[1753497766348,4.75342291,3740.4,3740.3,19.60539]
[1753497766553,4.75342291,3740.4,3740.3,6.80839]
[1753497766848,4.75342291,3740.4,3740.3,19.60439]
[1753497767751,2.34752291,3740.4,3740.3,6.80839]
[1753497767952,2.34752291,3740.4,3740.3,19.59939]
[1753497768549,1.32082291,3740.4,3740.3,19.59939]
[1753497769449,3.87512291,3740.4,3740.3,19.59739]
[1753497769651,3.88044485,3740.4,3740.3,19.59739]
[1753497770351,2.35284485,3740.4,3740.3,19.59739]
[1753497771249,0.73444485,3740.4,3740.3,19.59739]
[1753497775651,0.00532194,3740.4,3740.3,19.59739]
[1753497775851,3.15132194,3740.4,3740.3,19.59739]
[1753497776552,1.62372194,3740.4,3740.3,19.59739]
[1753497777154,4.75969925,3740.4,3740.3,16.65439]
[1753497777454,7.96749925,3740.4,3740.3,13.28859]
[1753497779356,4.75969925,3740.4,3740.3,14.14259]
[1753497779657,4.75969925,3740.4,3740.3,19.56239]
[1753497780557,4.75969925,3740.4,3740.3,15.66179]
[1753497781659,4.75969925,3740.4,3740.3,19.56239]
[1753497781849,4.75969925,3740.4,3740.3,6.80839]
[1753497782047,4.75969925,3740.4,3740.3,19.54339]
[1753497782457,0.73539925,3740.4,3740.3,19.54339]
[1753497782655,0.00532194,3740.4,3740.3,19.54339]
[1753497782855,0.00532194,3740.4,3740.3,20.27525554]
[1753497783859,4.75982273,3740.4,3740.3,6.80839]
[1753497784060,4.75982273,3740.4,3740.3,15.72109]
[1753497784659,4.75982273,3740.4,3740.3,13.26159]
[1753497784858,7.96762273,3740.4,3740.3,13.26159]
[1753497785058,7.97332273,3740.4,3740.3,13.26159]
[1753497785658,7.97332273,3740.4,3740.3,15.59819]
[1753497785959,7.97332273,3740.4,3740.3,17.16959]
[1753497786257,7.97332273,3740.4,3740.3,19.52909]
[1753497791062,7.97332273,3740.4,3740.3,16.29729]
[1753497791257,7.09152273,3740.4,3740.3,19.52909]
[1753497791659,7.09152273,3740.4,3740.3,19.50209]
[1753497792160,7.09152273,3740.4,3740.3,19.50009]
[1753497792360,0.00532194,3740.4,3740.3,19.50009]
[1753497792961,0.00532194,3740.4,3740.3,20.23195554]
[1753497793259,0.73543881,3740.4,3740.3,20.23195554]
[1753497793875,0.73543881,3740.4,3740.3,19.50009]
[1753497795460,3.84073881,3740.4,3740.3,19.48509]
[1753497795668,4.78263881,3740.4,3740.3,19.48509]
[1753497795868,4.78263881,3740.4,3740.3,6.80209]
[1753497796065,4.78263881,3740.4,3740.3,19.48409]
[1753497796262,4.78263881,3740.4,3740.3,6.2675]
[1753497796467,4.78263881,3740.4,3740.3,16.53209]
[1753497796866,4.78263881,3740.4,3740.3,18.10349]